bitfinex-derivatives/quotes_BTCF0:USTF0_20251011
["timestamp","ask_amount","ask_price","bid_price","bid_amount"]
[1760212006482,0.3628,111210.0,111200.0,0.67694]
[1760212006684,0.38415,111210.0,111200.0,0.27694]
[1760212007177,0.001,111210.0,111200.0,1.1275688]
[1760212007774,0.73552,111230.0,111220.0,0.01388]
[1760212007978,0.75787,111230.0,111220.0,0.28694]
[1760212008279,0.37472,111230.0,111220.0,1.1375527]
[1760212008481,0.37472,111230.0,111220.0,1.64973467]
[1760212008679,0.37472,111230.0,111220.0,1.1375527]
[1760212008880,0.37572,111230.0,111220.0,1.1375527]
[1760212009286,0.37572,111230.0,111220.0,1.04774]
[1760212009480,0.37672,111230.0,111220.0,1.6201229]
[1760212009681,0.37672,111230.0,111220.0,1.62916636]
[1760212009881,0.001,111230.0,111220.0,1.71897906]
[1760212010481,0.4729406,111250.0,111240.0,0.03694]
[1760212010681,0.4729406,111250.0,111240.0,0.27694]
[1760212011084,1.4453235,111250.0,111240.0,0.25388]
[1760212011386,1.4453235,111250.0,111240.0,0.24]
[1760212011684,1.4463235,111250.0,111240.0,0.24]
[1760212012387,1.51773225,111250.0,111240.0,0.24]
[1760212012986,1.51773225,111250.0,111240.0,0.27694]
[1760212013289,2.09011515,111250.0,111240.0,0.24]
[1760212013481,0.0898046,111230.0,111220.0,0.00883831]
[1760212013681,0.6846425,111230.0,111220.0,0.04]
[1760212013884,0.0898207,111210.0,111200.0,0.01388]
[1760212014081,1.0230036,111210.0,111200.0,0.24388]
[1760212014280,1.0230036,111210.0,111200.0,0.26694]
[1760212014683,1.03218173,111210.0,111200.0,0.26694]
[1760212014884,1.03218173,111210.0,111200.0,0.24388]
[1760212015389,1.10469239,111210.0,111200.0,0.24388]
[1760212016586,1.10569239,111210.0,111200.0,0.24388]
[1760212017088,1.10569239,111210.0,111200.0,0.26694]
[1760212017990,1.10569239,111210.0,111200.0,0.24388]
[1760212019283,0.53330949,111210.0,111200.0,0.26694]
[1760212019591,0.52413136,111210.0,111200.0,0.26694]
[1760212020679,1.09651426,111210.0,111200.0,0.26694]
[1760212020881,0.001,111210.0,111200.0,0.66694]
[1760212021189,0.001,111210.0,111200.0,1.6001229]
[1760212021585,0.001,111210.0,111200.0,1.02774]
[1760212021981,1.0240036,111210.0,111200.0,0.26694]
[1760212022586,1.0240036,111210.0,111200.0,0.24388]
[1760212022788,1.0240036,111210.0,111200.0,0.26694]
[1760212022988,1.0240036,111210.0,111200.0,0.24388]
[1760212024490,1.49624128,111210.0,111200.0,0.23]
[1760212024692,1.49624128,111210.0,111180.0,0.01388]
[1760212024693,0.0898369,111190.0,111180.0,0.01388]
[1760212024890,1.3838198,111190.0,111180.0,0.24388]
[1760212025494,0.089845,111180.0,111170.0,0.01388]
[1760212025694,1.0230279,111180.0,111170.0,0.24388]
[1760212026693,1.4230279,111180.0,111170.0,0.24488]
[1760212026900,0.0898611,111160.0,111150.0,0.01388]
[1760212027196,1.023044,111160.0,111150.0,0.25388]
[1760212028397,0.4506611,111160.0,111150.0,0.25388]
[1760212028597,1.024044,111160.0,111150.0,0.25388]
[1760212029296,1.425044,111160.0,111150.0,0.25388]
[1760212029694,1.43422337,111160.0,111150.0,0.25388]
[1760212031998,0.86184047,111160.0,111150.0,0.25388]
[1760212032392,1.43422337,111160.0,111150.0,0.25388]
[1760212034801,1.79502337,111160.0,111150.0,0.25388]
[1760212040806,1.79502337,111160.0,111150.0,0.24]
[1760212041008,2.36740627,111160.0,111150.0,0.24]
[1760212041196,0.0898692,111150.0,111140.0,0.01398128]
[1760212041401,1.0230521,111150.0,111140.0,0.09398128]
[1760212042202,1.595435,111150.0,111140.0,0.09398128]
[1760212042404,1.596435,111150.0,111140.0,0.09398128]
[1760212042603,1.596435,111150.0,111140.0,0.08010128]
[1760212043106,1.0240521,111150.0,111140.0,0.08010128]
[1760212043406,1.0475727,111150.0,111140.0,0.08010128]
[1760212044304,1.0475727,111150.0,111140.0,0.09336128]
[1760212045502,1.0475727,111150.0,111140.0,0.01336128]
[1760212045808,1.0475727,111150.0,111140.0,0.26336128]
[1760212049408,1.0475727,111150.0,111140.0,0.28487128]
[1760212049908,0.3853206,111150.0,111140.0,0.68487128]
[1760212050101,0.3628,111150.0,111140.0,0.68487128]
[1760212050306,1.0250521,111150.0,111140.0,0.68487128]
[1760212050502,1.0250521,111150.0,111140.0,0.66336128]
[1760212050712,1.04805479,111150.0,111140.0,0.26336128]
[1760212051302,0.47567189,111150.0,111140.0,0.28487128]
[1760212051507,0.38580269,111150.0,111140.0,0.68487128]
[1760212051707,0.4526692,111150.0,111140.0,0.68487128]
[1760212051907,1.04807605,111150.0,111140.0,0.68487128]
[1760212052615,0.38582395,111150.0,111140.0,0.68487128]
[1760212052814,0.95820685,111150.0,111140.0,0.68487128]
[1760212053514,0.02502395,111150.0,111140.0,1.04567128]
[1760212053708,0.002,111150.0,111140.0,1.04567128]
[1760212053908,0.3608,111160.0,111150.0,0.1246392]
[1760212054105,0.3608,111170.0,111160.0,0.03477]
[1760212054307,0.38389658,111170.0,111160.0,0.917014]
[1760212054511,0.3608,111170.0,111160.0,0.917014]
[1760212054807,0.3608,111170.0,111160.0,0.25477]
[1760212055112,0.3608,111170.0,111160.0,0.3446311]
[1760212055303,0.3608,111170.0,111160.0,0.7446311]
[1760212055707,0.001,111170.0,111160.0,1.317014]
[1760212055908,0.001,111170.0,111160.0,1.677814]
[1760212056303,0.001,111170.0,111160.0,1.5879529]
[1760212056714,0.002,111170.0,111160.0,1.01557]
[1760212056916,0.002,111170.0,111160.0,1.1054311]
[1760212057208,0.002,111170.0,111160.0,0.65477]
[1760212057615,0.002,111170.0,111160.0,1.1054311]
[1760212057806,0.002,111170.0,111160.0,0.7446311]
[1760212058418,0.002,111170.0,111160.0,1.1054311]
[1760212058616,0.002,111170.0,111160.0,0.65477]
[1760212058814,0.002,111170.0,111160.0,0.7446311]
[1760212059015,0.002,111170.0,111160.0,0.65477]
[1760212059816,0.002,111170.0,111160.0,1.1054311]
[1760212060716,0.002,111170.0,111160.0,1.677814]
[1760212062417,0.0898393,111190.0,111180.0,0.03436]
[1760212062617,0.0898393,111190.0,111180.0,0.27436]
[1760212062818,0.4506393,111190.0,111180.0,0.27436]
[1760212063316,1.0230222,111190.0,111180.0,0.27436]
[1760212063617,1.0250222,111190.0,111180.0,0.27436]
[1760212063814,1.0260222,111190.0,111180.0,0.27436]
[1760212066818,0.4536393,111190.0,111180.0,0.27436]
[1760212067021,0.4536369,111190.0,111180.0,0.27436]
[1760212071320,0.3638,111190.0,111180.0,0.364205]
[1760212071527,0.4536369,111190.0,111180.0,0.27436]
[1760212072026,0.0928369,111190.0,111180.0,0.27436]
[1760212072623,0.003,111190.0,111180.0,0.27436]
[1760212072823,0.003,111190.0,111180.0,0.63516]
[1760212073028,0.003,111190.0,111180.0,1.125005]
[1760212073622,0.003,111190.0,111180.0,1.03516]
[1760212073825,0.0928369,111190.0,111180.0,1.03516]
[1760212074026,0.0928369,111190.0,111180.0,0.67436]
[1760212074228,0.0908369,111190.0,111180.0,0.67436]
[1760212074430,0.0898369,111190.0,111180.0,0.27436]
[1760212075728,0.4506369,111190.0,111180.0,0.27436]
[1760212076232,0.0898369,111190.0,111180.0,0.27436]
[1760212076428,0.4506369,111190.0,111180.0,0.27436]
[1760212078732,0.4516369,111190.0,111180.0,0.27436]
[1760212079836,0.4526369,111190.0,111180.0,0.27436]
[1760212081732,0.002,111190.0,111180.0,0.364205]
[1760212081938,0.002,111190.0,111180.0,0.764205]
[1760212082130,0.002,111190.0,111180.0,1.637159]
[1760212083434,0.001,111190.0,111180.0,1.637159]
[1760212083833,0.37436,111200.0,111190.0,0.1241969]
[1760212084038,0.37436,111200.0,111190.0,0.7549969]
[1760212084229,0.0898245,111210.0,111190.0,1.6671509]
[1760212084429,0.0898245,111210.0,111200.0,0.03436]
[1760212084635,0.0898245,111210.0,111200.0,0.64516]
[1760212084834,0.0898245,111210.0,111200.0,0.28436]
[1760212085936,0.8506245,111210.0,111200.0,0.28436]
[1760212086130,1.385636,111210.0,111200.0,0.26287]
[1760212086839,1.385636,111210.0,111200.0,0.25]
[1760212087139,0.987636,111210.0,111200.0,0.26287]
[1760212087537,0.475482,111210.0,111200.0,0.26287]
[1760212087727,1.05834912,111210.0,111200.0,0.26287]
[1760212087933,0.54719512,111210.0,111200.0,0.28436]
[1760212088240,0.45737062,111210.0,111200.0,0.28436]
[1760212088540,0.3628,111210.0,111200.0,0.68436]
[1760212088839,0.002,111210.0,111200.0,0.7741887]
[1760212089438,0.001,111210.0,111200.0,0.68436]
[1760212090034,0.0908207,111210.0,111200.0,0.28436]
[1760212090232,0.9627705,111220.0,111210.0,0.01287]
[1760212090436,0.98562502,111220.0,111210.0,0.26436]
[1760212090838,0.47347102,111220.0,111210.0,0.26436]
[1760212091340,0.47447102,111220.0,111210.0,0.26436]
[1760212092036,0.54481987,111220.0,111210.0,0.26436]
[1760212092237,0.54581869,111220.0,111210.0,0.26436]
[1760212095035,1.45797269,111220.0,111210.0,0.24287]
[1760212095642,1.45797269,111220.0,111210.0,0.23]
[1760212095843,0.0898207,111210.0,111200.0,0.01287]
[1760212096145,0.98562804,111210.0,111200.0,0.29591]
[1760212096348,0.98562804,111210.0,111200.0,0.27287]
[1760212096943,0.47347404,111210.0,111200.0,0.27287]
[1760212097143,0.98562804,111210.0,111200.0,0.27287]
[1760212097946,0.98662804,111210.0,111200.0,0.27287]
[1760212098648,0.98762804,111210.0,111200.0,0.27287]
[1760212099239,0.47547404,111210.0,111200.0,0.29591]
[1760212099444,0.47447404,111210.0,111200.0,0.29591]
[1760212099644,0.47547404,111210.0,111200.0,0.29591]
[1760212099845,0.47547404,111210.0,111200.0,0.27287]
[1760212100042,0.47447404,111210.0,111200.0,0.27287]
[1760212100248,1.38762804,111210.0,111200.0,0.27287]
[1760212104352,1.38762804,111210.0,111200.0,0.29591]
[1760212104550,0.87547404,111210.0,111200.0,0.29591]
[1760212105153,1.38762804,111210.0,111200.0,0.29591]
[1760212106845,1.38762804,111210.0,111200.0,0.27287]
[1760212107451,1.38762804,111210.0,111200.0,0.29591]
[1760212108352,0.47547404,111210.0,111200.0,0.29591]
[1760212108547,0.4526207,111210.0,111200.0,0.29591]
[1760212109050,0.3628,111210.0,111200.0,0.69591]
[1760212109250,0.3628,111210.0,111200.0,0.7857388]
[1760212109456,0.3608,111220.0,111210.0,0.1262807]
[1760212109757,0.7352,111240.0,111230.0,0.03646]
[1760212109960,0.84793233,111240.0,111230.0,0.28646]
[1760212110159,0.83385855,111240.0,111230.0,0.28646]
[1760212110851,0.83485855,111240.0,111230.0,0.28646]
[1760212111353,0.83385855,111240.0,111230.0,0.28646]
[1760212111553,0.83485855,111240.0,111230.0,0.28646]
[1760212112458,0.83685855,111240.0,111230.0,0.28646]
[1760212112662,0.8279965,111240.0,111230.0,0.28646]
[1760212112857,0.8269965,111240.0,111230.0,0.28646]
[1760212113058,0.8279965,111240.0,111230.0,0.28646]
[1760212113259,0.81133771,111240.0,111230.0,0.68646]
[1760212113558,0.45053771,111240.0,111230.0,0.68646]
[1760212114165,0.3774,111240.0,111230.0,0.68646]
[1760212114460,0.4671965,111240.0,111230.0,0.68646]
[1760212116466,0.8279965,111240.0,111230.0,0.68646]
[1760212117366,0.7382,111240.0,111230.0,0.68646]
[1760212117967,0.4671965,111240.0,111230.0,1.04726]
[1760212118167,0.3774,111240.0,111230.0,0.7762645]
[1760212118367,0.4671965,111240.0,111230.0,1.04726]
[1760212118869,0.4671965,111240.0,111230.0,0.68646]
[1760212121562,0.4671965,111240.0,111230.0,0.28646]
[1760212121767,0.8279965,111240.0,111230.0,0.28646]
[1760212122364,0.8279965,111240.0,111230.0,0.68646]
[1760212122570,0.4671965,111240.0,111230.0,0.68646]
[1760212122765,0.4671965,111240.0,111230.0,0.28646]
[1760212125567,0.4671965,111240.0,111230.0,0.64726]
[1760212125768,0.3774,111240.0,111230.0,1.1370645]
[1760212125974,0.003,111240.0,111230.0,1.6492185]
[1760212126267,0.003,111240.0,111230.0,1.04726]
[1760212126472,0.0927965,111240.0,111230.0,0.28646]
[1760212126672,0.0927965,111240.0,111230.0,0.64726]
[1760212126867,0.0927965,111240.0,111230.0,0.28646]
[1760212127067,0.0917965,111240.0,111230.0,0.28646]
[1760212127272,0.4525965,111240.0,111230.0,0.28646]
[1760212127472,0.4505965,111240.0,111230.0,0.28646]
[1760212129671,1.3627505,111240.0,111230.0,0.26342]
[1760212130775,0.8505965,111240.0,111230.0,0.28628]
[1760212131569,0.8505965,111240.0,111230.0,0.26342]
[1760212132875,1.3627505,111240.0,111230.0,0.26342]
[1760212133478,1.42317641,111240.0,111230.0,0.26342]
[1760212134577,1.4464483,111240.0,111230.0,0.26342]
[1760212135472,1.4464483,111240.0,111230.0,0.25]
[1760212136179,0.0898045,111230.0,111220.0,0.01342]
[1760212136477,1.04646682,111230.0,111220.0,0.25342]
[1760212138571,1.44646682,111230.0,111220.0,0.25342]
[1760212138771,1.44646682,111230.0,111220.0,0.24]
[1760212139473,1.97376121,111230.0,111220.0,0.24]
[1760212139975,0.0898206,111210.0,111200.0,0.01287]
[1760212140178,1.9112949,111210.0,111200.0,0.24287]
[1760212140776,1.94366336,111210.0,111200.0,0.24287]
[1760212141176,1.94366336,111210.0,111200.0,0.24387]
[1760212141377,1.94366336,111210.0,111200.0,0.24487]
[1760212141577,1.39342398,111210.0,111200.0,0.24487]
[1760212141879,1.46472757,111210.0,111200.0,0.24487]
[1760212142777,1.48801495,111210.0,111200.0,0.24487]
[1760212143174,1.46472757,111210.0,111200.0,0.24487]
[1760212145283,1.48798786,111210.0,111200.0,0.232]
[1760212145477,1.88798786,111210.0,111200.0,0.24482]
[1760212147183,1.86472757,111210.0,111200.0,0.24482]
[1760212148090,1.86472757,111210.0,111200.0,0.26768]
[1760212148383,1.86472757,111210.0,111200.0,0.24482]
[1760212151893,1.86472757,111210.0,111180.0,0.26282]
[1760212151894,0.0898368,111190.0,111180.0,0.26282]
[1760212152095,1.02358375,111190.0,111180.0,0.20282]
[1760212153695,1.02358375,111190.0,111180.0,0.20382]
[1760212154197,1.02358375,111190.0,111180.0,0.22652]
[1760212154895,0.4506368,111190.0,111180.0,0.62652]
[1760212155094,0.4506366,111190.0,111180.0,0.62652]
[1760212155990,0.3608,111200.0,111180.0,0.62652]
[1760212156190,0.4506286,111200.0,111190.0,0.03575]
[1760212156393,0.3608,111200.0,111190.0,0.7555866]
[1760212156596,0.07130359,111210.0,111200.0,0.1255786]
[1760212156795,0.45978165,111220.0,111200.0,0.26575]
[1760212157098,0.45978165,111220.0,111210.0,0.03575]
[1760212157292,0.4506137,111220.0,111210.0,0.29575]
[1760212157794,1.02356065,111220.0,111210.0,0.27305]
[1760212158297,1.44679886,111220.0,111210.0,0.27305]
[1760212158600,0.0898205,111210.0,111200.0,0.01305]
[1760212158797,1.04680566,111210.0,111200.0,0.27305]
[1760212159291,0.0898285,111200.0,111190.0,0.01305]
[1760212159492,1.02357545,111200.0,111190.0,0.27305]
[1760212159690,1.04682229,111200.0,111190.0,0.27305]
[1760212161994,1.04682229,111200.0,111190.0,0.29575]
[1760212162692,0.47387534,111200.0,111190.0,0.29575]
[1760212163395,1.04682229,111200.0,111190.0,0.29575]
[1760212163599,1.04682229,111200.0,111190.0,0.27305]
[1760212164796,1.04682229,111200.0,111190.0,0.29575]
[1760212165000,1.02357545,111200.0,111190.0,0.29575]
[1760212165297,0.38408213,111200.0,111190.0,0.29575]
[1760212165499,0.3608,111200.0,111190.0,0.7855866]
[1760212165894,0.43111105,111210.0,111190.0,1.1463866]
[1760212166100,0.43111105,111210.0,111200.0,0.03575]
[1760212166290,0.3608,111210.0,111200.0,0.3455785]
[1760212166693,0.3608,111220.0,111210.0,0.1255705]
[1760212166894,0.3608,111230.0,111220.0,0.03575]
[1760212167097,0.3608,111230.0,111220.0,0.25575]
[1760212167697,0.93374695,111230.0,111220.0,0.25575]
[1760212167899,1.02355125,111230.0,111220.0,0.25575]
[1760212168402,0.4516043,111230.0,111220.0,0.25575]
[1760212168598,1.02455125,111230.0,111220.0,0.25575]
[1760212169304,1.02455125,111230.0,111220.0,0.23305]
[1760212169498,1.02455125,111230.0,111220.0,0.25575]
[1760212169700,1.02455125,111230.0,111220.0,0.23305]
[1760212170797,1.38535125,111230.0,111220.0,0.23305]
[1760212171004,1.40862237,111230.0,111220.0,0.23305]
[1760212171903,1.80862237,111230.0,111220.0,0.22]
[1760212172603,0.0898124,111220.0,111210.0,0.01305]
[1760212172903,1.04683047,111220.0,111210.0,0.23305]
[1760212173197,0.0898205,111210.0,111200.0,0.01305]
[1760212173402,1.04683154,111210.0,111200.0,0.24305]
[1760212174704,1.51758189,111210.0,111200.0,0.24305]
[1760212175106,1.51758189,111210.0,111200.0,0.23]
[1760212175300,1.51758189,111210.0,111180.0,0.26305]
[1760212175301,0.0898366,111190.0,111180.0,0.01305]
[1760212175496,1.38438355,111190.0,111180.0,0.23305]
[1760212175803,1.80764006,111190.0,111180.0,0.23305]
[1760212176401,1.80764006,111190.0,111180.0,0.22]
[1760212176801,1.80764006,111190.0,111180.0,0.221]
[1760212177506,1.80764006,111190.0,111180.0,0.222]
[1760212178306,1.80764006,111190.0,111180.0,0.23505]
[1760212178705,1.80764006,111190.0,111180.0,0.222]
[1760212179306,1.80764006,111190.0,111180.0,0.092]
[1760212179503,0.0898527,111170.0,111160.0,0.14305]
[1760212179700,1.04683438,111170.0,111160.0,0.24305]
[1760212180705,1.40763438,111170.0,111160.0,0.24305]
[1760212180901,0.83468743,111170.0,111160.0,0.26905]
[1760212181100,1.38439965,111170.0,111160.0,0.26905]
[1760212181295,0.7216,111170.0,111160.0,0.26905]
[1760212181508,0.3608,111180.0,111170.0,0.03662]
[1760212181707,0.3608,111180.0,111170.0,0.29662]
[1760212182001,0.3608,111180.0,111170.0,0.69662]
[1760212182308,1.02359165,111180.0,111170.0,0.29662]
[1760212182996,1.02359165,111180.0,111170.0,0.29762]
[1760212183806,0.93374695,111180.0,111170.0,0.29862]
[1760212183998,0.3608,111180.0,111170.0,0.29862]
[1760212184608,0.4506447,111180.0,111170.0,0.29862]
[1760212185905,1.02359165,111180.0,111170.0,0.29862]
[1760212186205,0.57294695,111180.0,111170.0,0.29862]
[1760212186609,0.66279165,111180.0,111170.0,0.29862]
[1760212186810,0.4506403,111190.0,111180.0,0.03662]
[1760212187109,0.4506403,111190.0,111180.0,0.27662]
[1760212187701,1.02358725,111190.0,111180.0,0.27662]
[1760212188113,1.02358725,111190.0,111180.0,0.25491]
[1760212188410,1.42358725,111190.0,111180.0,0.25591]
[1760212189713,1.44681368,111190.0,111180.0,0.25591]
[1760212193215,1.42358725,111190.0,111180.0,0.25591]
[1760212193416,1.36304587,111190.0,111180.0,0.25591]
[1760212196718,0.96304587,111190.0,111180.0,0.242]
[1760212196914,0.98625599,111190.0,111180.0,0.242]
[1760212198714,0.98625599,111190.0,111180.0,0.25591]
[1760212199017,0.98625599,111190.0,111180.0,0.242]
[1760212201416,0.47385042,111190.0,111180.0,0.25591]
[1760212201614,0.98625599,111190.0,111180.0,0.25591]
[1760212202412,0.98625599,111190.0,111180.0,0.242]
[1760212203814,1.38625599,111190.0,111180.0,0.122]
[1760212205214,1.38625599,111190.0,111180.0,0.13591]
[1760212205615,1.38625599,111190.0,111180.0,0.122]
[1760212208622,0.0898529,111170.0,111160.0,0.11305]
[1760212208925,0.98626859,111170.0,111160.0,0.25576]
[1760212209816,0.43152538,111170.0,111160.0,0.65776]
[1760212210024,0.3608,111180.0,111170.0,0.03662]
[1760212210227,0.4506448,111180.0,111170.0,0.28662]
[1760212211224,0.4506448,111180.0,111170.0,0.28762]
[1760212211625,0.4506448,111180.0,111170.0,0.26591]
[1760212211825,0.4506448,111180.0,111170.0,0.28849]
[1760212216928,0.4506448,111180.0,111170.0,0.68849]
[1760212217130,0.3608,111180.0,111170.0,0.68849]
[1760212217428,0.4506294,111200.0,111180.0,0.03539]
[1760212217623,0.4506294,111200.0,111190.0,0.03539]
[1760212217826,0.3608,111200.0,111190.0,0.27539]
[1760212218028,0.4506287,111200.0,111190.0,0.27539]
[1760212218234,0.9394443,111200.0,111190.0,0.27539]
[1760212218733,0.9394443,111200.0,111190.0,0.25281]
[1760212219432,0.96288296,111200.0,111190.0,0.25281]
[1760212219632,0.96288296,111200.0,111190.0,0.25381]
[1760212220833,0.98619484,111200.0,111190.0,0.25381]
[1760212221228,0.96288296,111200.0,111190.0,0.25381]
[1760212222128,0.96288296,111200.0,111190.0,0.27639]
[1760212222334,0.4506287,111200.0,111190.0,0.27639]
[1760212222524,0.3608,111200.0,111190.0,0.27639]
[1760212222723,0.3608,111200.0,111190.0,0.67639]
[1760212222932,0.89577485,111210.0,111200.0,0.03539]
[1760212223129,0.89577485,111210.0,111200.0,0.26539]
[1760212224027,0.89577485,111210.0,111200.0,0.24281]
[1760212224233,1.40802911,111210.0,111200.0,0.24281]
[1760212224530,0.91867303,111210.0,111200.0,0.24281]
[1760212224736,1.40802911,111210.0,111200.0,0.24281]
[1760212224936,1.43092766,111210.0,111200.0,0.24281]
[1760212226830,1.40802911,111210.0,111200.0,0.26539]
[1760212227231,0.80595035,111210.0,111200.0,0.26539]
[1760212227528,0.89577095,111210.0,111200.0,0.26539]
[1760212227933,0.80595035,111210.0,111200.0,0.26539]
[1760212228126,0.89577095,111210.0,111200.0,0.26539]
[1760212229340,1.40802521,111210.0,111200.0,0.24281]
[1760212230032,1.40802521,111210.0,111200.0,0.26539]
[1760212230437,0.89577095,111210.0,111200.0,0.26539]
[1760212230839,0.89577095,111210.0,111200.0,0.66539]
[1760212231135,0.80595035,111210.0,111200.0,0.66539]
[1760212231731,0.89577095,111210.0,111200.0,0.66539]
[1760212231933,0.80595035,111210.0,111200.0,0.66539]
[1760212232237,0.44515035,111210.0,111200.0,0.66539]
[1760212232836,0.53497095,111210.0,111200.0,0.66539]
[1760212234741,0.4642206,111210.0,111200.0,0.66539]
[1760212236833,0.3608,111220.0,111200.0,0.7552187]
[1760212237041,0.089816,111220.0,111210.0,0.03539]
[1760212237240,0.089816,111220.0,111210.0,0.68539]
[1760212237640,0.4506091,111230.0,111220.0,0.03539]
[1760212237836,0.4506091,111230.0,111220.0,0.24539]
[1760212238237,0.4506091,111230.0,111220.0,0.64539]
[1760212238743,0.4506091,111230.0,111220.0,0.24539]
[1760212239641,0.4516091,111230.0,111220.0,0.24539]
[1760212241440,0.3618,111230.0,111220.0,0.24539]
[1760212241635,0.4516045,111230.0,111220.0,0.24539]
[1760212242344,0.52203309,111230.0,111220.0,0.24539]
[1760212243642,0.43222859,111230.0,111220.0,0.7352026]
[1760212243840,0.43222859,111230.0,111220.0,0.64539]
[1760212244746,0.07142859,111230.0,111220.0,0.64539]
[1760212245340,0.001,111230.0,111220.0,1.0960026]
[1760212251248,0.001,111230.0,111220.0,0.60619]
[1760212251448,0.4516046,111230.0,111220.0,0.24539]
[1760212253355,0.96385886,111230.0,111220.0,0.24539]
[1760212253546,1.0242645,111230.0,111220.0,0.24539]
[1760212254352,1.4242645,111230.0,111220.0,0.22281]
[1760212254747,1.44729171,111230.0,111220.0,0.21]
[1760212254950,0.0898126,111220.0,111210.0,0.01281]
[1760212255253,1.04629971,111220.0,111210.0,0.19281]
[1760212258150,1.04629971,111220.0,111210.0,0.21467]
[1760212260046,0.95648711,111220.0,111210.0,0.21467]
[1760212260254,0.3608,111220.0,111210.0,0.21467]
[1760212260450,0.9334599,111230.0,111220.0,0.03528]
[1760212260757,0.3608,111230.0,111220.0,0.26528]
[1760212261056,1.10545516,111240.0,111230.0,0.01342]
[1760212261255,1.1285458,111240.0,111230.0,0.27528]
[1760212262056,1.1295458,111240.0,111230.0,0.27528]
[1760212263256,1.1295458,111240.0,111230.0,0.25342]
[1760212263456,1.1305458,111240.0,111230.0,0.25342]
[1760212264057,1.1305458,111240.0,111230.0,0.27528]
[1760212264455,0.5578859,111240.0,111230.0,0.27528]
[1760212264649,1.1305458,111240.0,111230.0,0.27528]
[1760212266754,1.1305458,111240.0,111230.0,0.25342]
[1760212267959,1.1305458,111240.0,111230.0,0.27528]
[1760212268258,1.1305458,111240.0,111230.0,0.25342]
[1760212268563,0.0898045,111230.0,111220.0,0.01342]
[1760212268757,1.04635504,111230.0,111220.0,0.11342]
[1760212268958,1.44635504,111230.0,111220.0,0.1]
[1760212269564,1.44635504,111230.0,111220.0,0.13528]
[1760212269765,1.44735504,111230.0,111220.0,0.13528]
[1760212269965,1.04735504,111230.0,111220.0,0.13528]
[1760212270464,1.0242644,111230.0,111220.0,0.13528]
[1760212271169,0.9344599,111230.0,111220.0,0.13528]
[1760212271367,0.3618,111230.0,111220.0,0.13528]
[1760212271566,0.3618,111230.0,111220.0,0.53528]
[1760212272069,0.001,111230.0,111220.0,0.53528]
[1760212272361,0.001,111230.0,111220.0,0.89608]
[1760212273561,0.16301379,111240.0,111220.0,0.89608]
[1760212273864,0.4505925,111250.0,111240.0,0.03546]
[1760212274067,0.0897925,111250.0,111240.0,0.30546]
[1760212274665,0.16150139,111250.0,111240.0,0.30546]
[1760212274967,0.07170889,111250.0,111240.0,0.30546]
[1760212275265,0.0897884,111250.0,111240.0,0.30546]
[1760212277069,0.0897884,111250.0,111240.0,0.28312]
[1760212277070,0.6634483,111250.0,111240.0,0.28312]
[1760212277268,1.0242483,111250.0,111240.0,0.28312]
[1760212277673,1.4242483,111250.0,111240.0,0.28312]
[1760212277967,2.01997932,111250.0,111240.0,0.01366054]
[1760212278268,0.0897964,111240.0,111220.0,0.34342]
[1760212278465,1.0232644,111230.0,111220.0,0.25342]
[1760212278865,0.00725,111220.0,111210.0,0.03546]
[1760212279063,0.9407099,111220.0,111210.0,0.03546]
[1760212279268,0.9407099,111220.0,111210.0,0.25546]
[1760212280669,0.3608,111220.0,111210.0,0.65546]
[1760212281279,0.36805,111220.0,111210.0,0.65546]
[1760212283068,0.4578626,111220.0,111210.0,0.65546]
[1760212283478,0.4506126,111220.0,111210.0,0.65546]
[1760212283675,0.4578626,111220.0,111210.0,0.65546]
[1760212285276,0.4578626,111220.0,111210.0,0.25546]
[1760212285476,1.0305225,111220.0,111210.0,0.25546]
[1760212285678,1.0305225,111220.0,111210.0,0.23312]
[1760212286273,0.4578626,111220.0,111210.0,0.25546]
[1760212286474,1.0305225,111220.0,111210.0,0.25546]
[1760212286873,1.0305225,111220.0,111210.0,0.23312]
[1760212287575,1.4350525,111220.0,111210.0,0.22]
[1760212287774,1.4360525,111220.0,111210.0,0.22]
[1760212287973,1.4315225,111220.0,111210.0,0.22]
[1760212288479,1.4315225,111220.0,111210.0,0.23319]
[1760212288867,1.4315225,111220.0,111210.0,0.25454]
[1760212289073,0.36905,111220.0,111210.0,0.25454]
[1760212289281,0.4588626,111220.0,111210.0,0.25454]
[1760212291879,1.0315225,111220.0,111210.0,0.25454]
[1760212292575,1.0315225,111220.0,111210.0,0.22]
[1760212292775,1.4315225,111220.0,111210.0,0.22]
[1760212292979,1.45456717,111220.0,111210.0,0.22]
[1760212294277,1.4315225,111220.0,111210.0,0.22]
[1760212294677,1.0315225,111220.0,111210.0,0.25454]
[1760212294878,1.0315225,111220.0,111210.0,0.23319]
[1760212295177,1.0315225,111220.0,111210.0,0.22]
[1760212296377,1.0315225,111220.0,111210.0,0.23319]
[1760212297083,1.0315225,111220.0,111210.0,0.22]
[1760212300085,1.0315225,111220.0,111210.0,0.25454]
[1760212300281,1.0315225,111220.0,111210.0,0.23319]
[1760212300480,1.0315225,111220.0,111210.0,0.22]
[1760212301484,1.55867268,111220.0,111210.0,0.22]
[1760212302587,1.00876764,111220.0,111210.0,0.25416]
[1760212302880,1.00876754,111220.0,111210.0,0.25416]
[1760212303079,1.00876754,111220.0,111210.0,0.23281]
[1760212303287,1.00876754,111220.0,111210.0,0.22]
[1760212304988,1.00876754,111220.0,111210.0,0.23342]
[1760212306287,1.00876754,111220.0,111210.0,0.22]
[1760212306887,1.95867258,111220.0,111210.0,0.22]
[1760212307381,1.98174613,111220.0,111210.0,0.22]
[1760212308889,0.0970787,111200.0,111190.0,0.18312]
[1760212309084,1.36858374,111200.0,111190.0,0.29417]
[1760212309984,1.37737046,111200.0,111190.0,0.29417]
[1760212310184,1.27875504,111200.0,111190.0,0.29417]
[1760212310591,1.36858374,111200.0,111190.0,0.29417]
[1760212312090,1.37760004,111200.0,111190.0,0.29417]
[1760212312995,1.37760004,111200.0,111190.0,0.27312]
[1760212313292,2.40360374,111200.0,111190.0,0.26]